Cogmind - Beta 12 @@@ ROGUE MODE // 2023.07.04 @ 07:59:19 Player: Gokudera ElPsyCongroo Result: Destroyed by G-47 Trooper with Particle Gun Performance ------------- Evolutions (3) 1500 Regions Visited (11) 2200 Robots Destroyed (128) 640 Value Destroyed (3314) 3314 Prototype IDs (47) 940 Alien Tech Used (0) 0 Bonus (300) 300 TOTAL SCORE: 8894 Bonus ------- Aligned with FarCom 300 Cogmind --------- Core Integrity 0/700 Matter 82/300 Energy 18/100 System Corruption 0% Temperature Cool (36) Movement Rolling (100) Location -7/Factory Parts ------- > --- POWER (2) -------- (None) > --- PROPULSION (4) --- Armored Huge Wheel Armored Huge Wheel > --- UTILITY (4) ------ Large Storage Unit Improved Sensor Array Modified TNC ECM Suite > --- WEAPON (3) ------- Advanced EMP Blaster > --- INVENTORY (15) --- Reinforced Antimatter Reactor Armored Treads Armored Huge Wheel Armored Huge Wheel Heavy Ion Cannon Peak State ------------ > --- POWER ------------ Improved Deuterium Engine Heavy Deuterium Engine > --- PROPULSION ------- Light Treads Advanced Treads Armored Huge Wheel > --- UTILITY ---------- High-capacity Storage Unit Advanced Targeting Computer Hardened Medium Armor Plating Advanced Hardlight Generator > --- WEAPON ----------- AWS/Thermal Advanced Beam Cannon > --- INVENTORY -------- Heavy Ion Engine Deuterium Engine Nuclear Core Light Treads Light Treads Light Treads Huge Storage Unit Large Battery Modified TNC Hardened Light Armor Plating Improved Light Armor Plating Trap Reconfigurator Gatling Laser Heavy Ion Cannon Heavy Ion Cannon Heavy Ion Cannon Heavy Ion Cannon Shock Bomb Launcher Advanced EMP Blaster Rocket Launcher [Rating: 60] Favorites ----------- Power Improved Ion Engine Engine Improved Ion Engine Power Core Light Nuclear Core Reactor Reinforced Antimatter Reactor Propulsion Light Treads Treads Light Treads Wheel Armored Huge Wheel Utility High-capacity Storage Unit Device Coolant Injector Storage High-capacity Storage Unit Processor Advanced Targeting Computer Protection Hardened Light Armor Plating Weapon Heavy Ion Cannon Energy Gun EM Pulse Gun Energy Cannon Heavy Ion Cannon Ballistic Gun Light Assault Rifle Ballistic Cannon Light Cannon Launcher Advanced EMP Blaster Special Weapon Mining Laser Special Melee Weapon Datajack Build | -11 -10 -10 -9 -9 -9 -8 -8 -8 -7 -7 -7 ------- Run | Jun Mat Min Mat Min Exi Min Mat Sto Fac Was Fac Slots Evolved 6 | . . . 2 . . . 2 . 2 . . Power 1 | . . . . . . . . . 1 . . Propulsion 2 | . . . 1 . . . 1 . . . . Utility 2 | . . . 1 . . . 1 . . . . Weapon 1 | . . . . . . . . . 1 . . Parts Attached 164 | 7 17 5 37 3 3 2 29 29 16 6 10 Power 23 | 1 1 1 5 1 . 1 4 2 5 1 1 Engine 19 | 1 1 1 4 1 . 1 3 2 5 . . Core 3 | . . . 1 . . . 1 . . . 1 Reactor 1 | . . . . . . . . . . 1 . Propulsion 38 | 2 4 3 9 2 . 1 9 5 1 . 2 Treads 32 | 2 3 1 9 2 . 1 9 5 . . . Leg . | . . . . . . . . . . . . Wheel 6 | . 1 2 . . . . . . 1 . 2 Hover . | . . . . . . . . . . . . Flight . | . . . . . . . . . . . . Utility 42 | 2 4 1 5 . 1 . 6 14 2 3 4 Device 20 | 1 . . 1 . . . 1 11 1 3 2 Storage 8 | 1 3 . 1 . 1 . . 1 . . 1 Processor 5 | . 1 . 1 . . . 2 . . . 1 Hackware . | . . . . . . . . . . . . Protection 9 | . . 1 2 . . . 3 2 1 . . Artifact . | . . . . . . . . . . . . Weapon 61 | 2 8 . 18 . 2 . 10 8 8 2 3 Energy Gun 6 | 1 . . 1 . . . . 2 1 1 . Energy Cannon 23 | . . . 3 . 1 . 7 4 6 . 2 Ballistic Gun 6 | 1 2 . 3 . . . . . . . . Ballistic Cannon 14 | . 4 . 8 . . . 2 . . . . Launcher 9 | . 2 . 1 . . . 1 2 1 1 1 Special Weapon 2 | . . . 2 . . . . . . . . Impact Weapon . | . . . . . . . . . . . . Slashing Weapon . | . . . . . . . . . . . . Piercing Weapon . | . . . . . . . . . . . . Special Melee Weapon 1 | . . . . . 1 . . . . . . Unidentified Prototypes 8 | . . . 4 . . . . 4 . . . Parts Lost 7 | . . 3 . . . 1 . . . 2 1 Power 2 | . . . . . . 1 . . . 1 . Propulsion 1 | . . 1 . . . . . . . . . Utility 2 | . . . . . . . . . . 1 1 Weapon 2 | . . 2 . . . . . . . . . Highest Loss Streak 3 | . . 3 . . . 1 . . . 2 1 To Critical Strikes . | . . . . . . . . . . . . Average Slot Usage (%) 97 | . 100 97 99 100 99 100 100 99 96 66 21 Engine 10 | . 14 14 10 11 11 11 8 9 15 11 . Treads 31 | . 26 15 32 33 33 33 36 35 25 11 . Device 7 | . 7 . 2 11 11 11 9 9 7 6 9 Storage 9 | . 14 14 11 11 11 11 9 9 7 5 . Processor 6 | . 6 12 8 . . . 9 9 7 5 7 Protection 8 | . . 1 11 11 11 11 9 8 7 5 . Energy Cannon 13 | . . . 5 22 18 22 17 17 21 5 . Ballistic Gun 2 | . 13 13 4 . . . . . . . . Ballistic Cannon 3 | . 12 12 11 . . . . . . . . Naked Turns 25 | . . . . . . . . . . 25 . Heaviest Build 91 | 14 90 51 64 62 62 62 69 74 91 91 29 Greatest Support 87 | 40 40 40 63 63 63 63 87 84 84 28 56 Greatest Overweight (x) 8 | . 4 4 1 . . . 1 . 3 8 . Average Overweight (x) . | . . 3 . . . . . . 1 1 . Largest Inventory Capacity 25 | 8 25 20 20 20 20 20 20 20 20 20 15 Average Capacity 18 | 7 12 20 20 20 20 20 20 20 20 16 6 Most Carried 20 | 4 20 20 20 20 20 20 20 20 20 20 7 Average Carried 18 | 2 9 19 19 19 19 19 19 19 19 16 5 Final Capacity 20 | 8 20 20 20 20 20 20 20 20 20 5 15 Final Carried 20 | 4 20 19 20 20 20 20 20 20 20 5 7 Class Distribution -------------------- 88% | Mutant 6% | Gunner 5% | Scavenger-Mutant Dominant Class ---------------- Mutant | -10/Materials Mutant | -10/Mines Mutant | -9/Materials Mutant | -9/Mines Mutant | -9/Exiles Mutant | -8/Mines Mutant | -8/Materials Mutant | -8/Storage Gunner | -7/Factory Mutant | -7/Waste Mutant | -7/Factory Resources | -11 -10 -10 -9 -9 -9 -8 -8 -8 -7 -7 -7 ----------- Run | Jun Mat Min Mat Min Exi Min Mat Sto Fac Was Fac Matter Collected 3093 | 272 499 161 1146 30 10 47 349 347 232 . . Remotely 369 | 108 261 . . . . . . . . . . Salvage Created 4791 | 94 411 77 772 231 . 455 913 1256 582 . . Parts 266 | 3 32 3 55 15 . 18 49 64 27 . . Haulers Intercepted 14 | . 2 . 4 . . . 3 5 . . . Recyclers Shooed 10 | . 1 . 2 1 . . 3 1 2 . . Parts Field Recycled . | . . . . . . . . . . . . Retrieved Matter . | . . . . . . . . . . . . Parts Self-Destructed . | . . . . . . . . . . . . Prevented . | . . . . . . . . . . . . Kills | -11 -10 -10 -9 -9 -9 -8 -8 -8 -7 -7 -7 ------- Run | Jun Mat Min Mat Min Exi Min Mat Sto Fac Was Fac Combat Hostiles Destroyed 78 | . 8 2 15 6 . 9 12 16 10 . . Guns 9 | . 1 1 6 . . . . . 1 . . Cannons 50 | . 5 1 7 6 . 7 10 10 4 . . AOE 11 | . 2 . 2 . . . . 4 3 . . Classes Destroyed 13 | 1 5 . 3 . . 1 2 . 1 . . Worker 6 | . 2 . 1 . . . . 1 2 . . Builder 2 | . . . . . . . 1 1 . . . Tunneler 3 | . . . 1 2 . . . . . . . Hauler 14 | . 2 . 4 . . . 3 5 . . . Recycler 12 | 1 2 . 2 1 . . 2 1 3 . . Watcher 13 | . 3 . 4 . . . 4 2 . . . Swarmer 24 | . 3 . 6 5 . . 4 . 6 . . Grunt 37 | . 5 2 6 1 . 7 4 12 . . . Brawler 2 | . . . . . . 2 . . . . . Duelist 1 | . . . 1 . . . . . . . . Sentry 10 | . . . 2 . . . 3 4 1 . . Hunter 2 | . . . . . . . 1 . 1 . . Programmer 2 | . . . . . . . . . 2 . . Best Kill Streak 5 | 1 4 2 5 3 . 3 4 5 5 . . Combat Bots Only 4 | . 3 2 4 3 . 3 4 3 3 . . Max Kills in Single Turn 2 | 1 2 1 2 1 . 1 2 2 2 . . Gunslinging . | . . . . . . . . . . . . Exploded 2 | . 2 . 2 . . . . 2 1 . . Melee . | . . . . . . . . . . . . Uniques/NPCs Destroyed . | . . . . . . . . . . . . Combat | -11 -10 -10 -9 -9 -9 -8 -8 -8 -7 -7 -7 -------- Run | Jun Mat Min Mat Min Exi Min Mat Sto Fac Was Fac Damage Taken 4791 | . 368 689 383 149 . 495 473 595 581 198 860 Core 1246 | . 112 79 43 16 . 85 99 109 63 110 530 Absorbed by Shields . | . . . . . . . . . . . . Regen/Repaired (Parts) 55 | . . . 55 . . . . . . . . Core Remaining (%) 62 | 100 . 23 . . . 64 . 62 . . . Volleys Fired 339 | 2 50 5 71 15 . 22 59 83 24 4 4 Largest 3 | 1 2 2 2 2 . 2 2 2 3 1 1 Hottest 198 | 20 55 55 136 136 . 136 143 130 198 33 65 Shots Fired 646 | 2 98 10 133 30 . 45 108 140 58 18 4 Gun 117 | 2 48 5 46 . . . . . 2 14 . Cannon 508 | . 48 5 83 30 . 45 108 134 51 . 4 Launcher 18 | . 2 . 1 . . . . 6 5 4 . Special 3 | . . . 3 . . . . . . . . Kinetic 228 | 2 96 10 111 . . . 9 . . . . Thermal 400 | . . . 21 30 . 45 99 134 53 14 4 Explosive 12 | . 2 . 1 . . . . . 5 4 . Electromagnetic 6 | . . . . . . . . 6 . . . Robot Hit Streak 28 | 2 10 3 5 4 . 7 11 12 28 17 . Robot Miss Streak 7 | . 3 1 7 4 . 2 5 2 1 . . Penetration Max 1 | . . . 1 . . . . . . . . Secondary Targets . | . . . . . . . . . . . . Autonomous 16 | . . . . . . . . . 2 14 . Shots Hit Robots 401 | 2 63 6 75 15 4 30 61 85 43 17 . Core Hits 176 | 2 23 5 41 10 . 15 28 34 17 1 . Critical Kills 7 | . . . 3 . . 1 2 . 1 . . Critical Parts Destroyed 4 | . 1 . 3 . . . . . . . . Critical Strikes 13 | . 2 1 6 . . 1 2 . 1 . . Meltdown 4 | . . . . . . 1 2 . 1 . . Destroy 7 | . 1 . 6 . . . . . . . . Blast 2 | . 1 1 . . . . . . . . . Melee Attacks 4 | . . . . . 4 . . . . . . Impact . | . . . . . . . . . . . . Slashing . | . . . . . . . . . . . . Piercing . | . . . . . . . . . . . . Sneak Attacks 4 | . . . . . 4 . . . . . . Combat Hostiles . | . . . . . . . . . . . . Follow-up Attacks . | . . . . . . . . . . . . Damage Inflicted 9977 | 15 986 97 1501 304 . 718 1498 2715 1399 744 . Guns 1222 | 15 236 24 527 . . . . . 40 380 . Cannons 7282 | . 586 73 819 304 . 718 1498 2218 1066 . . Explosions 1464 | . 155 . 155 . . . . 497 293 364 . Melee . | . . . . . . . . . . . . Ramming 9 | . 9 . . . . . . . . . . Kinetic 2075 | 15 822 97 1141 . . . . . . . . Thermal 6429 | . . . 205 304 . 718 1498 2218 1106 380 . Explosive 1099 | . 155 . 155 . . . . 132 293 364 . Electromagnetic 365 | . . . . . . . . 365 . . . Impact . | . . . . . . . . . . . . Slashing . | . . . . . . . . . . . . Piercing . | . . . . . . . . . . . . Highest Corruption 4 | . . . . . . 4 1 1 . . . Average Corruption 1 | . . . . . . 4 1 1 . . . Corruption Purged . | . . . . . . . . . . . . Corruption Blocked . | . . . . . . . . . . . . Effects 36 | . . . . . . 8 . 28 . . . Message Errors 12 | . . . . . . 4 . 8 . . . Matter Fused 10 | . . . . . . 2 . 8 . . . Heat Flow Errors 5 | . . . . . . . . 5 . . . Energy Discharges 3 | . . . . . . . . 3 . . . Parts Rejected 2 | . . . . . . . . 2 . . . Data Loss (minor) 1 | . . . . . . . . 1 . . . Misfires 1 | . . . . . . 1 . . . . . Alerts 1 | . . . . . . 1 . . . . . Weapon Failures 1 | . . . . . . . . 1 . . . Overload Shots . | . . . . . . . . . . . . Overflow Damage 161 | . 27 . 26 . . . . 45 63 . . Projectiles 131 | . 1 . 26 . . . . 41 63 . . Explosions 30 | . 26 . . . . . . 4 . . . Melee . | . . . . . . . . . . . . Knockbacks 17 | . 9 1 7 . . . . . . . . Impact . | . . . . . . . . . . . . Kinetic 17 | . 9 1 7 . . . . . . . . Secondary . | . . . . . . . . . . . . Self-Inflicted Damage 39 | . 30 . . . . . . . . 9 . Shots 2 | . 1 . . . . . . . . 1 . Rammed 2 | . 1 . . . . . 1 . . . . Targets Rammed 2 | . 1 . . . . . 1 . . . . Kicked . | . . . . . . . . . . . . Crushed . | . . . . . . . . . . . . Highest Temperature 261 | . 79 73 174 135 . 198 207 205 261 . 30 Average Temperature 63 | . 17 43 36 38 . 87 67 77 125 . 21 Received Heat Transfer 1562 | . 144 89 114 54 . 225 243 333 24 . 336 Effects 5 | . . . . . . . . . 5 . . Energy Bleed 1 | . . . . . . . . . 1 . . Interference 4 | . . . . . . . . . 4 . . Siege Activations . | . . . . . . . . . . . . Robots Corrupted 1 | . . . . . . . . 1 . . . Combat Hostiles 1 | . . . . . . . . 1 . . . Parts Fried 2 | . . . . . . . . 2 . . . Impact Corruptions . | . . . . . . . . . . . . Robots Melted 7 | . . . . . . 2 2 1 2 . . Combat Hostiles 7 | . . . . . . 2 2 1 2 . . Parts Melted 22 | . . . . 1 . 1 9 3 8 . . Heat Transferred 9731 | . . . 370 555 . 1295 2405 3034 1591 481 . Parts Sabotaged . | . . . . . . . . . . . . Parts Stolen . | . . . . . . . . . . . . Parts Stripped . | . . . . . . . . . . . . Power Chain Reactions 2 | . . . . . . . . 2 . . . Missiles Intercepted . | . . . . . . . . . . . . Alert | -11 -10 -10 -9 -9 -9 -8 -8 -8 -7 -7 -7 ------- Run | Jun Mat Min Mat Min Exi Min Mat Sto Fac Was Fac Peak Influence 406 | 5 218 60 372 273 . 240 114 406 177 92 363 Initial 126 | . 3 10 11 125 . . 93 25 126 49 50 Average 106 | 3 56 53 142 127 . 139 57 145 74 65 230 Maximum Alert Level 2 | . 1 . 1 1 . 1 . 2 . . 1 Low Security (%) 82 | 100 95 100 60 79 . 81 100 75 100 100 37 Level 1 16 | . 4 . 39 20 . 18 . 23 . . 62 Level 2 . | . . . . . . . . . . . . Level 3 . | . . . . . . . . . . . . Level 4 . | . . . . . . . . . . . . Level 5 . | . . . . . . . . . . . . High Security . | . . . . . . . . . . . . Max Security . | . . . . . . . . . . . . Squads Dispatched 17 | . 2 . 3 . . . 1 5 4 . 2 Investigation 6 | . 1 . 1 . . . 1 2 1 . . Extermination 2 | . . . . . . . . . 2 . . Reinforcement 8 | . 1 . 2 . . . . 2 1 . 2 Assault . | . . . . . . . . . . . . Garrison 1 | . . . . . . . . 1 . . . Intercept . | . . . . . . . . . . . . Searches Triggered . | . . . . . . . . . . . . Construction Impeded 2 | . . . . . . . . 1 1 . . Haulers Reinforced . | . . . . . . . . . . . . Active Scanning Responses . | . . . . . . . . . . . . Cargo Convoy Interrupts . | . . . . . . . . . . . . Stealth | -11 -10 -10 -9 -9 -9 -8 -8 -8 -7 -7 -7 --------- Run | Jun Mat Min Mat Min Exi Min Mat Sto Fac Was Fac Distress Signals 13 | . 2 . 2 . . . 2 7 . . . Communications Jammed . | . . . . . . . . . . . . Distress Signals . | . . . . . . . . . . . . Times Spotted 168 | . 17 24 28 10 . 9 20 23 9 6 22 Peak Tracking Total 22 | . 4 22 5 4 . 3 4 3 3 6 7 Tactical Retreats 21 | . . 1 2 2 . 1 2 5 . 1 7 Traps | -11 -10 -10 -9 -9 -9 -8 -8 -8 -7 -7 -7 ------- Run | Jun Mat Min Mat Min Exi Min Mat Sto Fac Was Fac Traps Triggered 6 | . 2 . 1 . . . 1 . 1 . 1 Indirectly . | . . . . . . . . . . . . Trap Hack Attempts . | . . . . . . . . . . . . Triggered . | . . . . . . . . . . . . Disarmed . | . . . . . . . . . . . . Reprogrammed . | . . . . . . . . . . . . Reused 2 | . . . . . . . . 2 . . . Traps Reconfigurated 2 | . . . . . . . . 2 . . . Traps Extracted . | . . . . . . . . . . . . Installed . | . . . . . . . . . . . . Triggered 2 | . . . . . . . . 2 . . . Machines | -11 -10 -10 -9 -9 -9 -8 -8 -8 -7 -7 -7 ---------- Run | Jun Mat Min Mat Min Exi Min Mat Sto Fac Was Fac Machines Disabled 15 | . 2 . 4 . . 1 2 6 . . . Max in Single Turn 2 | . 1 . 1 . . 1 1 2 . . . Garrison Access 2 | . . . . . . . 1 1 . . . Machines Repaired . | . . . . . . . . . . . . Machines Sabotaged . | . . . . . . . . . . . . Overloaded Fab Kills . | . . . . . . . . . . . . Hacking | -11 -10 -10 -9 -9 -9 -8 -8 -8 -7 -7 -7 --------- Run | Jun Mat Min Mat Min Exi Min Mat Sto Fac Was Fac Machines Accessed 50 | . 5 . 9 1 2 . 10 9 8 . 6 Terminals 34 | . 4 . 7 1 . . 6 6 6 . 4 Fabricators . | . . . . . . . . . . . . Repair Stations 3 | . . . 1 . . . . 1 . . 1 Recycling Units 4 | . 1 . . . . . 1 1 1 . . Scanalyzers 5 | . . . 1 . . . 2 . 1 . 1 Garrison Access 2 | . . . . . . . 1 1 . . . Total Hacks 126 | . 13 . 32 2 2 . 27 20 19 . 11 Successful 64 | . 6 . 18 1 2 . 18 9 7 . 3 Failed 62 | . 7 . 14 1 . . 9 11 12 . 8 Catastrophic 12 | . 1 . 1 . . . 1 2 2 . 5 Database Lockouts . | . . . . . . . . . . . . Manual 60 | . 7 . 13 2 1 . 12 10 10 . 5 Terminals 92 | . 12 . 25 2 . . 16 15 17 . 5 Fabricators . | . . . . . . . . . . . . Repair Stations 5 | . . . 2 . . . . 1 . . 2 Recycling Units 6 | . 1 . . . . . 2 2 1 . . Scanalyzers 17 | . . . 5 . . . 7 . 1 . 4 Garrison Access 4 | . . . . . . . 2 2 . . . Terminal Hacks 24 | . 3 . 4 1 2 . 5 5 4 . . Record 1 | . . . . . 1 . . . . . . Part Schematic 1 | . . . . . . . . . 1 . . Prototype ID Bank 1 | . . . 1 . . . . . . . . Open Door 1 | . . . . . . . . 1 . . . Branch Access Points 5 | . 1 . 1 1 . . 1 1 . . . Terminal Index 1 | . 1 . . . . . . . . . . Alert Level 4 | . . . 1 . . . 1 1 1 . . Unreport Threat 2 | . . . . . . . 1 1 . . . Locate Traps 6 | . 1 . 1 . . . 2 1 1 . . Zone Layout 1 | . . . . . . . . . 1 . . EX-Prototype ID Bank 1 | . . . . . 1 . . . . . . Fabricator Hacks . | . . . . . . . . . . . . Repair Station Hacks 3 | . . . 2 . . . . . . . 1 Scan Component 2 | . . . 1 . . . . . . . 1 Repair 1 | . . . 1 . . . . . . . . Recycling Unit Hacks 3 | . 1 . . . . . 1 1 . . . Report Inventory 3 | . 1 . . . . . 1 1 . . . Scanalyzer 13 | . . . 5 . . . 6 . . . 2 Insert Component 7 | . . . 3 . . . 3 . . . 1 Analyze 6 | . . . 2 . . . 3 . . . 1 Garrison Access Hacks 2 | . . . . . . . 1 1 . . . Seal Access 2 | . . . . . . . 1 1 . . . Unauthorized Hacks 19 | . 2 . 7 . . . 5 2 3 . . Terminals 18 | . 2 . 7 . . . 5 1 3 . . Botnet 18 | . 2 . 7 . . . 5 1 3 . . Fabricators . | . . . . . . . . . . . . Repair Stations . | . . . . . . . . . . . . Recycling Units 1 | . . . . . . . . 1 . . . Tunnel 1 | . . . . . . . . 1 . . . Scanalyzers . | . . . . . . . . . . . . Garrison Access . | . . . . . . . . . . . . Data Cores Recovered . | . . . . . . . . . . . . Used . | . . . . . . . . . . . . Hacking Detections 44 | . 4 . 9 1 . . 9 7 8 . 6 Full Trace Events 3 | . . . . . . . 1 1 1 . . Feedback Events . | . . . . . . . . . . . . Feedback Blocked . | . . . . . . . . . . . . Robot Schematics Acquired . | . . . . . . . . . . . . Robots Built . | . . . . . . . . . . . . Authchips . | . . . . . . . . . . . . Time . | . . . . . . . . . . . . Total Robot Build Rating . | . . . . . . . . . . . . Part Schematics Acquired 7 | . . . 2 . . . 3 . 1 . 1 Parts Built . | . . . . . . . . . . . . Authchips . | . . . . . . . . . . . . Time . | . . . . . . . . . . . . Total Part Build Rating . | . . . . . . . . . . . . Parts Repaired 1 | . . . 1 . . . . . . . . Time 16 | . . . 16 . . . . . . . . Parts Recycled . | . . . . . . . . . . . . Recycled Matter . | . . . . . . . . . . . . Retrieved Matter . | . . . . . . . . . . . . Retrieved Components . | . . . . . . . . . . . . Parts Scanalyzed 6 | . . . 2 . . . 3 . . . 1 Part Schematics Acquired 6 | . . . 2 . . . 3 . . . 1 Parts Damaged . | . . . . . . . . . . . . Bothacking | -11 -10 -10 -9 -9 -9 -8 -8 -8 -7 -7 -7 ------------ Run | Jun Mat Min Mat Min Exi Min Mat Sto Fac Was Fac Used RIF Installer . | . . . . . . . . . . . . Robots Hacked 4 | . . . . . 4 . . . . . . Non-combat 3 | . . . . . 3 . . . . . . Combat 1 | . . . . . 1 . . . . . . Robot Hacks Applied 4 | . . . . . 4 . . . . . . parse_system 4 | . . . . . 4 . . . . . . Relay Couplers Released . | . . . . . . . . . . . . Fabnet Peak Effective % . | . . . . . . . . . . . . Robots Rewired . | . . . . . . . . . . . . Allies Hacked . | . . . . . . . . . . . . Hacks Repelled . | . . . . . . . . . . . . Allies | -11 -10 -10 -9 -9 -9 -8 -8 -8 -7 -7 -7 -------- Run | Jun Mat Min Mat Min Exi Min Mat Sto Fac Was Fac Total Allies . | . . . . . . . . . . . . Largest Group . | . . . . . . . . . . . . Highest-Rated Group . | . . . . . . . . . . . . Highest-Rated Ally . | . . . . . . . . . . . . Total Orders 8 | . . . . . . . . 8 . . . ROAM 3 | . . . . . . . . 3 . . . EXPLORE 4 | . . . . . . . . 4 . . . RETURN 1 | . . . . . . . . 1 . . . Ally Attacks . | . . . . . . . . . . . . Total Damage . | . . . . . . . . . . . . Kills . | . . . . . . . . . . . . Allies Corrupted . | . . . . . . . . . . . . Allies Melted . | . . . . . . . . . . . . Intel | -11 -10 -10 -9 -9 -9 -8 -8 -8 -7 -7 -7 ------- Run | Jun Mat Min Mat Min Exi Min Mat Sto Fac Was Fac Robot Analysis Total . | . . . . . . . . . . . . Derelict Logs Recovered 3 | . . 1 . 2 . . . . . . . Drone Launches 8 | . . . . . . . . 8 . . . Drone Recoveries 4 | . . . . . . . . 4 . . . Exploration | -11 -10 -10 -9 -9 -9 -8 -8 -8 -7 -7 -7 ------------- Run | Jun Mat Min Mat Min Exi Min Mat Sto Fac Was Fac Turns Passed 16134 | 141 1928 156 2628 1044 1052 231 3406 3788 1110 222 428 Spaces Moved 7709 | 80 979 86 1291 614 649 93 1437 1059 580 184 657 Core 700 | 4 . . . . . . . . . 70 626 Treads 6457 | 76 859 8 1291 614 649 93 1437 1059 371 . . Legs . | . . . . . . . . . . . . Wheels 552 | . 120 78 . . . . . . 209 114 31 Hover . | . . . . . . . . . . . . Flight . | . . . . . . . . . . . . Fastest Speed 50 | 50 135 120 160 160 160 160 152 152 130 50 50 Average Speed 150 | 154 172 156 172 160 160 160 153 152 153 110 52 Slowest Speed 450 | 160 320 240 240 160 160 160 230 152 232 450 100 Overloaded Moves . | . . . . . . . . . . . . Propulsion Burnouts . | . . . . . . . . . . . . Robots Hopped . | . . . . . . . . . . . . Cave-ins Triggered . | . . . . . . . . . . . . Exploration Rate (%) 52 | 5 79 22 82 81 74 27 65 80 15 76 19 Regions Visited 11 Branch Regions 5 Pre-discovered Areas 3 | . . . . 1 1 . . 1 . . . Known Exits Taken 4 | . 1 . 1 . . 1 1 . . . . Unknown Exits Taken 5 | 1 . 1 . 1 1 . . 1 . . . Scrap Searched 2 | . . . . 2 . . . . . . . Spaces Dug 43 | . . . 8 . . . 11 13 . 10 1 Terrain Destroyed 151 | . 14 . 33 . . . 17 42 26 18 1 Melee . | . . . . . . . . . . . . Projectile 81 | . . . 27 . . . 17 36 . . 1 AOE 70 | . 14 . 6 . . . . 6 26 18 . Terrain Rammed . | . . . . . . . . . . . . Walls Destroyed . | . . . . . . . . . . . . Machines Disabled . | . . . . . . . . . . . . Actions | -11 -10 -10 -9 -9 -9 -8 -8 -8 -7 -7 -7 --------- Run | Jun Mat Min Mat Min Exi Min Mat Sto Fac Was Fac Total 11660 | 93 1131 97 1557 650 663 131 2541 3095 762 201 739 Wait 3224 | . 47 . 108 10 . 15 968 1902 118 . 56 Move 7699 | 79 978 85 1290 613 648 92 1436 1058 580 183 657 Hop . | . . . . . . . . . . . . Pick Up 89 | 5 23 1 18 3 3 . 17 1 10 3 5 Fast Attach 49 | 6 3 . 10 . . . 3 17 2 4 4 Attach 23 | 1 . 1 4 . 1 1 2 . 6 1 6 Detach 9 | . 2 . 2 . . . . 1 . . 4 Swap 92 | . 14 4 23 3 2 1 24 12 8 1 . Drop 130 | . 13 1 31 6 5 . 31 21 14 5 3 Fire 339 | 2 50 5 71 15 . 22 59 83 24 4 4 Melee 4 | . . . . . 4 . . . . . . Ram . | . . . . . . . . . . . . Kick . | . . . . . . . . . . . . Crush 2 | . 1 . . . . . 1 . . . . Escape Stasis . | . . . . . . . . . . . . Rewire . | . . . . . . . . . . . . Trap . | . . . . . . . . . . . . Miscellaneous . | . . . . . . . . . . . . Route ------- -11/Junkyard -10/Materials (discovered 3 exits: *Mat x2 / *Min) -10/Mines -9/Materials (discovered 4 exits: *Mat x2 / *Min x2) -9/Mines (discovered 3 exits: *Mat x2 / *Exi) -9/Exiles -8/Mines -8/Materials (discovered 4 exits: *Fac x2 / *Sto x2) -8/Storage (discovered 2 exits: *Fac / Rec) -7/Factory -7/Waste -7/Factory History --------- Turn | Location | Event 22 | -11/Junkyard | Discovered new exit (range 15) 142 | -11/Junkyard | Entered Materials 329 | -10/Materials | Identified exit to Mines 336 | -10/Materials | Build established: Mutant 555 | -10/Materials | Discovered new exit (range 15) 1516 | -10/Materials | Discovered new exit (range 14) 2070 | -10/Materials | Entered Mines 2073 | -10/Mines | Core integrity fell below 50% 2159 | -10/Mines | Learned Materials stockpile data 2161 | -10/Mines | Discovered new exit (range 7) 2198 | -10/Mines | Assembled infested the area 2226 | -10/Mines | Entered Materials 2226 | -9/Materials | Evolved 2 slots: Propulsion x1, Utility x1 2250 | -9/Materials | Lost 3 parts (1n2w) 2513 | -9/Materials | Discovered new exit (range 8) 2520 | -9/Materials | Build established: Scavenger-Mutant 3079 | -9/Materials | Identified exit to Mines 3297 | -9/Materials | Discovered new exit (range 10) 3319 | -9/Materials | Build established: Mutant 4437 | -9/Materials | Repaired Imp. Treads 4854 | -9/Materials | Entered Mines 4857 | -9/Mines | Learned location of Storage (-8) 5037 | -9/Mines | Identified exit to Materials 5117 | -9/Mines | Learned Materials emergency access door positions 5195 | -9/Mines | Discovered exit to Materials (range 4) 5262 | -9/Mines | Deemed a non-threat by the Exiles lab entrance 5262 | -9/Mines | Discovered new exit (range 5) 5431 | -9/Mines | Joined a pair of Derelicts in attacking an 0b10 outpost 5491 | -9/Mines | Received a Rocket Launcher from a helpful Derelict 5898 | -9/Mines | Entered Exiles 5935 | -9/Exiles | Met 8R-AWN 5962 | -9/Exiles | Met EX-HEX 6086 | -9/Exiles | Met EX-DEC 6182 | -9/Exiles | Learned location of Zion (-6) 6214 | -9/Exiles | Met EX-BIN 6241 | -9/Exiles | Aligned with FarCom system 6242 | -9/Exiles | Given EX-Vault access code 6302 | -9/Exiles | Opened EX-Vault 6313 | -9/Exiles | Found Modified TNC 6325 | -9/Exiles | Found AWS/Thermal 6363 | -9/Exiles | Warned to stay clear of 0b10 Research branches 6725 | -9/Exiles | Found Trap Reconfigurator 6929 | -9/Exiles | Discovered new exit (range 14) 6950 | -9/Exiles | Stole three prototypes: Modified TNC, Trap Reconfigurator, AWS/Thermal 6950 | -9/Exiles | Entered Mines 7019 | -8/Mines | Discovered exit to Materials (range 13) 7181 | -8/Mines | Entered Materials 7181 | -8/Materials | Evolved 2 slots: Propulsion x1, Utility x1 8554 | -8/Materials | Discovered new exit (range 5) 9469 | -8/Materials | Identified exit to Storage 9695 | -8/Materials | Discovered new exit (range 10) 10587 | -8/Materials | Entered Storage 11945 | -8/Storage | Identified exit to Recycling 14125 | -8/Storage | Garrison activated, responded to threat 14199 | -8/Storage | Discovered new exit (range 13) 14375 | -8/Storage | Entered Factory 14375 | -7/Factory | Evolved 2 slots: Power x1, Weapon x1 14377 | -7/Factory | FarCom data flow suspended 14677 | -7/Factory | Build established: Gunner 15083 | -7/Factory | Discovered new exit (range 15) 15485 | -7/Factory | Sucked down chute 15485 | -7/Factory | Entered Waste 15527 | -7/Waste | Spotted C-40 Crusher 15529 | -7/Waste | Spotted C-40 Crusher 15559 | -7/Waste | Spotted C-40 Crusher 15560 | -7/Waste | Spotted C-40 Crusher 15560 | -7/Waste | Spotted C-40 Crusher 15599 | -7/Waste | Spotted C-40 Crusher 15646 | -7/Waste | Crushed by Compactor (1 part destroyed, 1 dropped) 15651 | -7/Waste | Crushed by Compactor (1 part destroyed, 2 dropped) 15652 | -7/Waste | Released all parts (6) 15672 | -7/Waste | Discovered new exit (range 15) 15707 | -7/Waste | Entered Factory 15799 | -7/Factory | Build established: Mutant 15831 | -7/Factory | Core integrity fell below 50% 16064 | -7/Factory | Core integrity fell below 20% 16135 | -7/Factory | Destroyed by G-47 Trooper with Particle Gun Last Messages --------------- 15976_ Acquired ECM Suite. 16007_ Drone sends a signal. 16063_ Slug penetrates Construction Platform. 16067_ Slug penetrates Wall. 16078_ Connecting with Terminal... 16083_ K-01 Serf cleans the Matter Pump. 16084_ Acquired Arm. Huge Wheel. 16086_ K-01 Serf cleans the Matter Pump. 16086_ Acquired Arm. Huge Wheel. 16087_ Matter Pump disabled. 16090_ Critical hit (Burn: +37). 16090_ K-01 Serf collects debris. 16091_ Acquired Arm. Huge Wheel. 16093_ K-01 Serf collects debris. 16093_ Acquired Arm. Huge Wheel. 16095_ G-47 Trooper destroyed. 16096_ K-01 Serf collects debris. 16099_ K-01 Serf cleans the Matter Pump. 16103_ K-01 Serf collects debris. 16135_ Critical hit (Burn: +37). Map ----- +----------------------------------------------------+ | ???????????## """ """ """ """ ??????????????? | | ???????????# """ """ ""% """ #????#??????????? | | ???????????# ^ #?? #???????? | | ???????????# / [ # ! ! #???????? | | ???????????# ""T"" / %!+ #???????? | | ???????????+ """"" /= # """ #???????? | | ???????????# #??""""?????????? | | ???????????# #???????????????? | | ???????????# ##???????????????? | | ???????????# #????????????????? | | ???????????### ########## #????????????????? | | ?????????????# # # #????????????????? | | ?????????????# # # #????????????????? | | ?????????????+ # """ # #????????????????? | | ?????????????# + """ # #????????????????? | | ?????????????# # """ # ????????????????? | | ?????????????# # # ???????????????? | | ?????????????# ##### """ggg # ""???????????????? | | ?????????????# ????# """ # ""???????????????? | | ?????????????+?????# """ # ????????????????? | | ???????????????????# h #? ??????????????????? | | ???????????????????# """ #????????????????????? | | ???????????????????# """ #????????????????????? | | ???????????????????# """ #????????????a???????? | | ???????????????????# #????????????????????? | | ???????????????????+ """ @ #????????????????????? | | ???????????????????# """ #????????????????????? | | ???????????????????# """ ! #????????????????????? | | ???????????????????# #????????????????????? | | ???????????????????##########????????????????????? | | ?????????????????????????????????????????????????? | | ?????????????????????????????????????????????????? | | ?????????????????????????????????????????????????? | | ?????????????????????????????????????????????????? | | ?????????????????????????????????????????????????? | | ?????????????????????????????????????????????????? | | ?????????????????????????????????????????????????? | | ?????????????????????????????????????????????????? | | ?????????????????????????????????????????????????? | | ?????????????????????????????????????????????????? | | ?????????????????????????????????????????????????? | | ?????????????????????????????????????????????????? | | ?????????????????????????????????????????????????? | | ?????????????????????????????????????????????????? | | ?????????????????????????????????????????????????? | | ?????????????????????????????????????????????????? | | ?????????????????????????????????????????????????? | | ?????????????????????????????????????????????????? | | ?????????????????????????????????????????????????? | | ?????????????????????????????????????????????????? | +----------------------------------------------------+ Best States ------------- Heat Dissipation 65 Coolant Potential 65 Energy Generation 30 Energy Capacity 500 Matter Stores 300 Matter Capacity 300 Sight Range 16 Robot Scan Range 15 Terrain Scan Density 10 ECM Strength 1 Armor Coverage 225 Evasion (%) 50 Targeting Accuracy 8 Recoil Reduction 4 Item Schematics ----------------- Bore Cannon | -9/Materials | Scanalyzed Adv. Beam Cannon | -9/Materials | Scanalyzed Rocket Launcher | -8/Materials | Scanalyzed Imp. Treads | -8/Materials | Scanalyzed Hvy. Ion Cannon | -8/Materials | Scanalyzed Hvy. Treads | -7/Factory | Hacked Arm. Treads | -7/Factory | Scanalyzed Robot Schematics ------------------ None Fabricated ------------ Nothing Alien Tech Used ----------------- None Achievements -------------- Hunted Challenges ------------ None Game ------ Seed CombatTransportKit Manual? 0 Play Time 02:13:23 Cumulative 65.4 hours Start 2023.07.04 @ 05:40:39 End 2023.07.04 @ 07:59:19 Sessions 1 Manual Loads 0 Difficulty Rogue Special Mode None Game No. 21 Rogue 21 Adventurer 0 Explorer 0 Win Type - Total 1 Types 1/0/0/0/0/0/0/0/0 Lore% 35 Gallery% 49 Achievement% 33 Wizard Run 0 Options --------- ASCII 0 Keyboard 1 Movement Numpad Keybinds 1 Fullscreen 1 Font 24/Proggy Map View 76x50 Tactical HUD 1 Map Filters NONE Filters NONE Steam 1 RUN: b87f9b01-147c-4b22-b3b7-cfd7f2b4e177